fUST/lending_fUST_20250719
["ID","MTS","AMOUNT","RATE_DAILY","PERIOD"]
[373301033,1752934249902,-653.24314903,0.00023442,2]
[373301034,1752934249912,-851.74996218,0.00023442,2]
[373301035,1752934249923,-676.18279391,0.00023442,2]
[373301036,1752934249932,-1954.12,0.00023477,4]
[373301037,1752934249942,-6614.82604384,0.00023486,9]
[373301038,1752934249951,-450.0,0.00023562,2]
[373301039,1752934249961,-1954.12,0.00023577,3]
[373301040,1752934249972,-841.0,0.000236,2]
[373301041,1752934249982,-705.18445603,0.00023631,5]
[373301042,1752934249993,-1954.12,0.00023677,7]
[373301043,1752934250003,-476.26,0.00023685,2]
[373301044,1752934250014,-161.83540059,0.00023699,2]
[373301045,1752934250024,-1113.58926198,0.000237,30]
[373301046,1752934250034,-13357.9,0.000237,7]
[373301047,1752934250043,-151.85065,0.000237,10]
[373301048,1752934250052,-151.0,0.000237,7]
[373301049,1752934250063,-6614.82604384,0.00023728,9]
[373301050,1752934250075,-151.0,0.00023728,7]
[373301051,1752934250085,-151.0,0.00023728,7]
[373301052,1752934250095,-151.225761,0.00023728,7]
[373301053,1752934250105,-151.0,0.00023728,7]
[373301054,1752934250116,-151.0,0.00023728,7]
[373301055,1752934250125,-151.0,0.00023728,7]
[373301056,1752934250135,-151.0,0.00023728,7]
[373301057,1752934250145,-1954.12,0.00023777,6]
[373301058,1752934250155,-500.0,0.00023804,2]
[373301059,1752934250165,-1000.0,0.00023823,2]
[373301060,1752934250176,-151.85065,0.00023845,14]
[373301061,1752934250187,-503.5032217,0.00023864,2]
[373301062,1752934250198,-986.8099699,0.00023864,2]
[373301063,1752934250208,-2156.0,0.00023875,2]
[373301064,1752934250219,-968.0,0.00023875,2]
[373301065,1752934250230,-407.0,0.00023875,2]
[373301066,1752934250240,-407.0,0.00023875,2]
[373301067,1752934250250,-1954.12,0.00023877,4]
[373301068,1752934250259,-151.0,0.00023877,7]
[373301069,1752934250269,-151.85065,0.00023883,2]
[373301070,1752934250279,-2071.79620625,0.00023946,2]
[373301071,1752934250288,-476.26,0.00023959,2]
[373301072,1752934250298,-6614.82604384,0.00023969,10]
[373301073,1752934250308,-1954.12,0.00023977,7]
[373301074,1752934250317,-230.94145789,0.00024,7]
[373301075,1752934250327,-230.94145789,0.00024,10]
[373301076,1752934250338,-160.0,0.00024,7]
[373301077,1752934250348,-160.0,0.00024,7]
[373301078,1752934250357,-160.0,0.00024,10]
[373301079,1752934250366,-215.67360783,0.00024,7]
[373301080,1752934250378,-215.67360783,0.00024,10]
[373301081,1752934250387,-525.83049785,0.00024,7]
[373301082,1752934250397,-525.83049785,0.00024,10]
[373301083,1752934250407,-525.83049785,0.00024,7]
[373301084,1752934250416,-839.454303,0.00024,7]
[373301085,1752934250425,-839.454303,0.00024,10]
[373301086,1752934250435,-839.454303,0.00024,7]
[373301087,1752934250444,-160.0,0.00024,7]
[373301088,1752934250454,-160.0,0.00024,10]
[373301089,1752934250463,-151.85065,0.00024013,7]
[373301090,1752934250474,-151.85065,0.00024016,6]
[373301091,1752934250483,-151.85065,0.00024024,5]
[373301092,1752934250493,-151.85065,0.00024043,3]
[373301093,1752934250503,-2071.79620625,0.00024046,2]
[373301094,1752934250512,-286.916508,0.00024046,7]
[373301095,1752934250522,-200.0,0.0002405,9]
[373301096,1752934250532,-1954.12,0.00024077,3]
[373301097,1752934250541,-486.21870661,0.00024085,2]
[373301098,1752934250554,-550.0,0.0002411,2]
[373301099,1752934250564,-2071.79620625,0.00024146,2]
[373301100,1752934250573,-151.85065,0.00024151,4]
[373301101,1752934250583,-500.0,0.00024154,2]
[373301102,1752934250593,-207.0,0.00024164,7]
[373301103,1752934250603,-1954.12,0.00024177,4]
[373301104,1752934250613,-160.0,0.00024185,5]
[373301105,1752934250623,-476.34170116,0.000242,7]
[373301106,1752934250635,-5577.55,0.000242,7]
[373301107,1752934250646,-151.255532,0.0002421,7]
[373301108,1752934250655,-151.0,0.0002421,7]
[373301109,1752934250665,-151.0,0.0002421,7]
[373301110,1752934250676,-151.0,0.0002421,7]
[373301111,1752934250687,-151.0,0.0002421,7]
[373301112,1752934250698,-256.068479,0.0002421,7]
[373301113,1752934250708,-256.068479,0.0002421,7]
[373301114,1752934250718,-151.0,0.0002421,7]
[373301115,1752934250728,-151.0,0.0002421,7]
[373301116,1752934250737,-297.481577,0.0002421,7]
[373301117,1752934250747,-297.481577,0.0002421,7]
[373301118,1752934250756,-151.0,0.0002421,7]
[373301119,1752934250767,-6614.82604384,0.0002421,10]
[373301120,1752934250776,-151.0,0.00024233,7]
[373301121,1752934250785,-476.26,0.00024233,2]
[373301122,1752934250796,-2071.79620625,0.00024246,2]
[373301123,1752934250816,-151.0,0.00024246,7]
[373301124,1752934250827,-1954.12,0.00024277,6]
[373301125,1752934250837,-2071.79620625,0.00024346,2]
[373301126,1752934250847,-151.0,0.00024346,7]
[373301127,1752934250857,-151.0,0.00024346,7]
[373301128,1752934250868,-151.0,0.00024346,7]
[373301129,1752934250877,-151.0,0.00024346,7]
[373301130,1752934250887,-188.435419,0.00024346,7]
[373301131,1752934250897,-151.85065,0.00024358,7]
[373301132,1752934250907,-1954.12,0.00024377,7]
[373301133,1752934250916,-600.0,0.00024398,2]
[373301134,1752934250926,-67429.5,0.000244,2]
[373301135,1752934250935,-151.85065,0.000244,10]
[373301136,1752934250945,-677.682365,0.00024401,8]
[373301137,1752934250954,-2071.79620625,0.00024446,2]
[373301138,1752934250965,-6614.82604384,0.00024452,11]
[373301139,1752934250974,-259309.82252155,0.00024474,8]
[373301140,1752934251375,-460.0,0.00017138,2]
[373301141,1752934251385,-460.0,0.00017412,2]
[373301142,1752934251394,-500.0,0.00017413,2]
[373301143,1752934251404,-500.0,0.00017413,2]
[373301144,1752934251413,-500.0,0.00017413,2]
[373301145,1752934251424,-500.0,0.00017413,2]
[373301146,1752934251435,-225.88295282,0.00017413,2]
[373301147,1752934251446,-166.42037347,0.00017686,2]
[373301148,1752934251458,-550.73773191,0.00017686,2]
[373301149,1752934251469,-385.30189462,0.00017686,2]
[373301150,1752934251478,-460.0,0.00017686,2]
[373301151,1752934251488,-652.54853519,0.0001796,2]
[373301152,1752934251699,-460.0,0.0001714,2]
[373301153,1752934251709,-500.0,0.00017413,2]
[373301154,1752934251719,-500.0,0.00017413,2]
[373301155,1752934251728,-500.0,0.00017413,2]
[373301156,1752934251738,-500.0,0.00017413,2]
[373301157,1752934251748,-500.0,0.00017413,2]
[373301158,1752934251758,-500.0,0.00017413,2]
[373301159,1752934251767,-500.0,0.00017413,2]
[373301160,1752934251777,-500.0,0.00017413,2]
[373301161,1752934251787,-500.0,0.00017413,2]
[373301162,1752934251796,-563.6745076,0.00017413,2]
[373301163,1752934251806,-500.0,0.00017413,2]
[373301164,1752934251816,-500.0,0.00017413,2]
[373301165,1752934251825,-369.1565746,0.00017413,2]
[373301166,1752934251835,-500.0,0.00017413,2]
[373301167,1752934251844,-507.89263125,0.00017413,2]
[373301168,1752934251854,-500.0,0.00017413,2]
[373301169,1752934251864,-227.65333645,0.00017413,2]
[373301170,1752934251874,-500.0,0.00017413,2]
[373301171,1752934251884,-500.0,0.00017413,2]
[373301172,1752934251894,-460.0,0.00017414,2]
[373301173,1752934251903,-460.0,0.00017688,2]
[373301174,1752934251913,-449.91146481,0.0001796,2]
[373301175,1752934251922,-460.0,0.0001796,2]
[373301176,1752934251932,-460.0,0.00017962,2]
[373301177,1752934251941,-1102.46,0.00018234,2]
[373301178,1752934251950,-460.0,0.00018234,2]
[373301179,1752934251959,-460.0,0.00018236,2]
[373301180,1752934251968,-1102.46,0.00018508,2]
[373301181,1752934251977,-460.0,0.00018508,2]
[373301182,1752934251986,-460.0,0.0001851,2]
[373301183,1752934251995,-1102.46,0.00018782,2]
[373301184,1752934252005,-460.0,0.00018782,2]
[373301185,1752934252014,-397.82,0.00018784,2]
[373301186,1752934252023,-1102.46,0.00019056,2]
[373301187,1752934252031,-460.0,0.00019056,2]
[373301188,1752934252040,-1856.7436946,0.00019328,2]
[373301189,1752934252049,-1102.46,0.0001933,2]
[373301190,1752934252059,-460.0,0.0001933,2]
[373301191,1752934252068,-1102.46,0.00019604,2]
[373301192,1752934252077,-460.0,0.00019604,2]
[373301193,1752934252086,-1102.46,0.00019878,2]
[373301194,1752934252095,-236.70578808,0.00019878,2]
[373301195,1752934252105,-1102.46,0.00020152,2]
[373301196,1752934252114,-1102.46,0.00020426,2]
[373301197,1752934252123,-599.1,0.000207,2]
[373301198,1752934252132,-222.13921129,0.000207,2]
[373301199,1752934252144,-880.32078871,0.000207,2]
[373301200,1752934252153,-599.1,0.00020974,2]
[373301201,1752934252162,-288.47921119,0.00020974,2]
[373301202,1752934252174,-813.98078881,0.00020974,2]
[373301203,1752934252183,-599.1,0.00021248,2]
[373301204,1752934252193,-1102.46,0.00021248,2]
[373301205,1752934252202,-599.1,0.00021522,2]
[373301206,1752934252212,-163.6581755,0.00021522,2]
[373301210,1752934830430,150.0,0.00014682,2]
[373301211,1752934830876,150.0,0.00015381,2]
[373301212,1752934864637,5000.0,0.0001833,6]
[373301214,1752934894175,420.670908,0.00013699,2]
[373301215,1752934895027,150.0,0.00014719,2]
[373301216,1752934895450,150.0,0.0001542,2]
[373301217,1752934912971,408.38586972,0.00015,3]
[373301226,1752935042674,162000.0,0.0001652,2]
[373301245,1752935256499,24900.0,0.00016137,2]
[373301246,1752935261457,5000.0,0.0001652,2]
[373301314,1752935437098,-731.82974463,0.00016867,2]
[373301315,1752935437156,-4118.17025537,0.00016867,2]
[373301317,1752935437166,-212.88172768,0.00017037,2]
[373301319,1752935437176,-300.0,0.00017134,2]
[373301321,1752935437185,-371.0,0.00017135,2]
[373301322,1752935437195,-460.0,0.00017135,2]
[373301323,1752935437206,-460.0,0.00017135,2]
[373301325,1752935437215,-460.0,0.00017135,2]
[373301326,1752935437225,-460.0,0.00017135,2]
[373301327,1752935437234,-134.11262078,0.00017135,2]
[373301328,1752935437246,-325.88737922,0.00017135,2]
[373301329,1752935437256,-418.6961466,0.00017135,2]
[373301330,1752935437268,-41.3038534,0.00017135,2]
[373301332,1752935437278,-460.0,0.00017135,2]
[373301333,1752935437288,-104.1461466,0.00017135,2]
[373301338,1752935437782,-571.3438534,0.00017135,2]
[373301339,1752935437792,-460.0,0.00017135,2]
[373301340,1752935437801,-4566.18942354,0.00017136,2]
[373301341,1752935437810,-624.83828553,0.00017136,2]
[373301342,1752935437819,-460.0,0.00017136,2]
[373301343,1752935437828,-460.0,0.00017136,2]
[373301344,1752935437838,-460.0,0.00017136,2]
[373301345,1752935437847,-460.0,0.00017136,2]
[373301346,1752935437857,-460.0,0.00017136,2]
[373301347,1752935437866,-460.0,0.00017136,2]
[373301349,1752935437879,-460.0,0.00017136,2]
[373301350,1752935437889,-460.0,0.00017136,2]
[373301351,1752935437898,-460.0,0.00017136,2]
[373301352,1752935437908,-460.0,0.00017136,2]
[373301353,1752935437917,-460.0,0.00017136,2]
[373301354,1752935437925,-460.0,0.00017136,2]
[373301355,1752935437935,-508.45,0.00017136,2]
[373301356,1752935437944,-460.0,0.00017136,2]
[373301357,1752935437954,-460.0,0.00017136,2]
[373301358,1752935437962,-460.0,0.00017136,2]
[373301359,1752935437971,-460.0,0.00017136,2]
[373301360,1752935437980,-511.21,0.00017136,2]
[373301361,1752935437989,-460.0,0.00017136,2]
[373301362,1752935437998,-460.0,0.00017136,2]
[373301363,1752935438007,-460.0,0.00017136,2]
[373301364,1752935438016,-460.0,0.00017136,2]
[373301365,1752935438025,-460.0,0.00017136,2]
[373301366,1752935438034,-460.0,0.00017136,2]
[373301367,1752935438043,-460.0,0.00017136,2]
[373301368,1752935438052,-460.0,0.00017136,2]
[373301369,1752935438062,-460.0,0.00017136,2]
[373301370,1752935438071,-460.0,0.00017136,2]
[373301371,1752935438080,-460.0,0.00017136,2]
[373301372,1752935438089,-460.0,0.00017137,2]
[373301373,1752935438098,-460.0,0.00017137,2]
[373301374,1752935438108,-460.0,0.00017137,2]
[373301375,1752935438118,-587.01335442,0.00017137,2]
[373301376,1752935438130,-460.0,0.00017137,2]
[373301377,1752935438139,-460.0,0.00017137,2]
[373301378,1752935438149,-399.6134041,0.00017137,2]
[373301379,1752935438158,-460.0,0.00017137,2]
[373301380,1752935438167,-460.0,0.00017137,2]
[373301381,1752935438177,-411.52004054,0.00017137,2]
[373301382,1752935438192,-460.0,0.00017137,2]
[373301383,1752935438207,-460.0,0.00017137,2]
[373301384,1752935438217,-727.8526391,0.00017137,2]
[373301385,1752935438227,-460.0,0.00017137,2]
[373301386,1752935438237,-460.0,0.00017137,2]
[373301387,1752935438248,-460.0,0.00017137,2]
[373301388,1752935438258,-460.0,0.00017137,2]
[373301389,1752935438268,-460.0,0.00017137,2]
[373301390,1752935438279,-460.0,0.00017137,2]
[373301391,1752935438289,-460.0,0.00017137,2]
[373301392,1752935438299,-460.0,0.00017137,2]
[373301393,1752935438309,-460.0,0.00017137,2]
[373301394,1752935438318,-460.0,0.00017137,2]
[373301395,1752935438328,-460.0,0.00017137,2]
[373301396,1752935438338,-460.0,0.00017137,2]
[373301397,1752935438348,-460.0,0.00017137,2]
[373301398,1752935438358,-511.27,0.00017137,2]
[373301399,1752935438367,-460.0,0.00017137,2]
[373301400,1752935438379,-460.0,0.00017137,2]
[373301401,1752935438389,-460.0,0.00017137,2]
[373301402,1752935438399,-460.0,0.00017137,2]
[373301403,1752935438409,-460.0,0.00017137,2]
[373301404,1752935438419,-460.0,0.00017137,2]
[373301405,1752935438429,-460.0,0.00017137,2]
[373301406,1752935438439,-460.0,0.00017137,2]
[373301407,1752935438449,-460.0,0.00017137,2]
[373301408,1752935438459,-151.0,0.00017137,2]
[373301409,1752935438469,-500.0,0.00017137,2]
[373301410,1752935438478,-151.0,0.00017137,2]
[373301411,1752935438488,-151.0,0.00017137,2]
[373301412,1752935438498,-500.0,0.00017137,2]
[373301413,1752935438507,-151.0,0.00017137,2]
[373301414,1752935438517,-460.0,0.00017137,2]
[373301415,1752935438527,-460.0,0.00017137,2]
[373301416,1752935438536,-460.0,0.00017137,2]
[373301417,1752935438546,-644.79,0.00017137,2]
[373301418,1752935438556,-460.98821901,0.00017138,2]
[373301419,1752935438565,-460.0,0.00017138,2]
[373301420,1752935438576,-460.0,0.00017138,2]
[373301421,1752935438585,-449.35364959,0.00017138,2]
[373301422,1752935438595,-461.37291907,0.00017138,2]
[373301423,1752935438605,-460.0,0.00017138,2]
[373301424,1752935438615,-460.0,0.00017138,2]
[373301425,1752935438625,-460.0,0.00017138,2]
[373301426,1752935438635,-462.34,0.00017138,2]
[373301427,1752935438645,-460.0,0.00017138,2]
[373301428,1752935438654,-460.0,0.00017138,2]
[373301429,1752935438664,-460.0,0.00017138,2]
[373301430,1752935438674,-460.0,0.00017138,2]
[373301431,1752935438683,-460.0,0.00017138,2]
[373301432,1752935438693,-460.0,0.00017138,2]
[373301433,1752935438703,-503.28961543,0.00017138,2]
[373301434,1752935438712,-460.0,0.00017138,2]
[373301435,1752935438721,-460.0,0.00017138,2]
[373301436,1752935438730,-460.0,0.00017138,2]
[373301437,1752935438740,-460.0,0.00017138,2]
[373301438,1752935438749,-460.0,0.00017138,2]
[373301439,1752935438759,-460.0,0.00017138,2]
[373301440,1752935438768,-460.0,0.00017138,2]
[373301441,1752935438778,-151.0,0.00017138,2]
[373301442,1752935438788,-151.09681786,0.00017138,2]
[373301443,1752935438798,-460.0,0.00017138,2]
[373301444,1752935438807,-151.0,0.00017138,2]
[373301445,1752935438817,-151.0,0.00017138,2]
[373301446,1752935438827,-151.0,0.00017138,2]
[373301447,1752935438836,-151.0,0.00017138,2]
[373301448,1752935438846,-151.0,0.00017138,2]
[373301449,1752935438856,-500.0,0.00017138,2]
[373301450,1752935438867,-460.0,0.00017138,2]
[373301451,1752935438881,-711.0,0.00017138,2]
[373301452,1752935438890,-460.0,0.00017138,2]
[373301453,1752935438900,-460.0,0.00017138,2]
[373301454,1752935438910,-500.0,0.00017138,2]
[373301455,1752935438920,-151.0,0.00017138,2]
[373301456,1752935438929,-460.0,0.00017138,2]
[373301457,1752935438940,-460.0,0.00017138,2]
[373301458,1752935438951,-460.0,0.00017138,2]
[373301459,1752935438961,-460.0,0.00017138,2]
[373301460,1752935438971,-460.0,0.00017138,2]
[373301461,1752935438981,-550.92734134,0.0001714,2]
[373301462,1752935438991,-151.0,0.0001714,2]
[373301463,1752935439000,-708.0,0.0001714,2]
[373301464,1752935439010,-500.0,0.0001714,2]
[373301465,1752935439020,-151.0,0.0001714,2]
[373301466,1752935439030,-151.0,0.0001714,2]
[373301467,1752935439040,-500.0,0.0001714,2]
[373301468,1752935439050,-151.0,0.0001714,2]
[373301469,1752935439059,-460.0,0.00017409,2]
[373301470,1752935439069,-675.49,0.00017409,2]
[373301471,1752935439079,-460.0,0.00017409,2]
[373301472,1752935439089,-460.0,0.0001741,2]
[373301473,1752935439099,-292.56207713,0.0001741,2]
[373301474,1752935439109,-460.0,0.0001741,2]
[373301475,1752935439119,-460.0,0.0001741,2]
[373301476,1752935439130,-460.0,0.0001741,2]
[373301477,1752935439140,-511.21,0.0001741,2]
[373301478,1752935439150,-460.0,0.0001741,2]
[373301479,1752935439160,-460.0,0.0001741,2]
[373301480,1752935439170,-460.0,0.0001741,2]
[373301481,1752935439179,-500.0,0.00017411,2]
[373301482,1752935439188,-151.0,0.00017411,2]
[373301483,1752935439198,-151.87870992,0.00017411,2]
[373301484,1752935439208,-500.0,0.00017411,2]
[373301485,1752935439217,-152.79228163,0.00017411,2]
[373301486,1752935439227,-460.0,0.00017411,2]
[373301487,1752935439237,-489.29855073,0.00017411,2]
[373301488,1752935439247,-460.0,0.00017411,2]
[373301489,1752935439256,-450.79405297,0.00017411,2]
[373301490,1752935439266,-460.0,0.00017411,2]
[373301491,1752935439276,-460.0,0.00017411,2]
[373301492,1752935439287,-460.0,0.00017411,2]
[373301493,1752935439297,-460.0,0.00017411,2]
[373301494,1752935439307,-460.0,0.00017411,2]
[373301495,1752935439316,-511.27,0.00017411,2]
[373301496,1752935439326,-460.0,0.00017411,2]
[373301497,1752935439336,-460.0,0.00017411,2]
[373301498,1752935439346,-460.0,0.00017411,2]
[373301499,1752935439355,-644.79,0.00017411,2]
[373301501,1752935439365,-247.82111675,0.00017412,2]
[373301502,1752935439375,-151.0,0.00017412,2]
[373301503,1752935439385,-151.0,0.00017412,2]
[373301504,1752935439395,-500.0,0.00017412,2]
[373301505,1752935439406,-711.0,0.00017412,2]
[373301506,1752935439416,-500.0,0.00017412,2]
[373301507,1752935439425,-151.0,0.00017412,2]
[373301508,1752935439435,-460.0,0.00017412,2]
[373301509,1752935439445,-460.0,0.00017412,2]
[373301510,1752935439455,-460.0,0.00017412,2]
[373301511,1752935439464,-460.0,0.00017412,2]
[373301512,1752935439474,-460.0,0.00017412,2]
[373301513,1752935439483,-460.0,0.00017412,2]
[373301514,1752935439494,-460.0,0.00017412,2]
[373301515,1752935439504,-460.0,0.00017412,2]
[373301516,1752935439513,-460.0,0.00017412,2]
[373301517,1752935439523,-460.0,0.00017412,2]
[373301518,1752935439532,-198.99342437,0.00017414,2]
[373301519,1752935439543,-708.0,0.00017414,2]
[373301520,1752935439553,-532.26403551,0.00017414,2]
[373301521,1752935439562,-151.0,0.00017414,2]
[373301522,1752935439572,-151.0,0.00017414,2]
[373301523,1752935439581,-626.68948773,0.00017414,2]
[373301524,1752935439591,-151.0,0.00017414,2]
[373301525,1752935439601,-460.0,0.00017683,2]
[373301526,1752935439610,-675.49,0.00017683,2]
[373301527,1752935439620,-460.0,0.00017684,2]
[373301528,1752935439630,-460.0,0.00017684,2]
[373301529,1752935439640,-460.0,0.00017684,2]
[373301530,1752935439649,-511.21,0.00017684,2]
[373301532,1752935439659,-460.0,0.00017684,2]
[373301533,1752935439669,-460.0,0.00017684,2]
[373301534,1752935439679,-460.0,0.00017684,2]
[373301535,1752935439690,-518.50673032,0.00017685,2]
[373301536,1752935439701,-151.0,0.00017685,2]
[373301537,1752935439715,-500.0,0.00017685,2]
[373301538,1752935439727,-460.0,0.00017685,2]
[373301539,1752935439737,-460.0,0.00017685,2]
[373301540,1752935439747,-460.0,0.00017685,2]
[373301541,1752935439756,-460.0,0.00017685,2]
[373301542,1752935439765,-460.0,0.00017685,2]
[373301544,1752935439775,-511.27,0.00017685,2]
[373301546,1752935439785,-460.0,0.00017685,2]
[373301548,1752935439795,-460.0,0.00017685,2]
[373301550,1752935439805,-644.79,0.00017685,2]
[373301552,1752935439815,-151.0,0.00017686,2]
[373301554,1752935439824,-151.0,0.00017686,2]
[373301556,1752935439834,-422.86983277,0.00017686,2]
[373301558,1752935439843,-711.0,0.00017686,2]
[373301560,1752935439853,-250.55373563,0.00017686,2]
[373301562,1752935439863,-151.0,0.00017686,2]
[373301564,1752935439876,-460.0,0.00017686,2]
[373301566,1752935439886,-460.0,0.00017686,2]
[373301568,1752935439897,-460.0,0.00017686,2]
[373301570,1752935439906,-380.55309913,0.00017686,2]
[373301572,1752935439918,-460.0,0.00017686,2]
[373301574,1752935439927,-460.0,0.00017686,2]
[373301576,1752935439937,-460.0,0.00017686,2]
[373301578,1752935439948,-460.0,0.00017687,2]
[373301580,1752935439959,-372.47941056,0.00017687,2]
[373301581,1752935439968,-460.0,0.00017687,2]
[373301582,1752935439978,-708.0,0.00017688,2]
[373301583,1752935439987,-151.0,0.00017688,2]
[373301584,1752935439996,-500.0,0.00017807,2]
[373301585,1752935440006,-460.0,0.00017957,2]
[373301586,1752935440015,-675.49,0.00017957,2]
[373301587,1752935440024,-460.0,0.00017958,2]
[373301588,1752935440034,-460.0,0.00017958,2]
[373301589,1752935440043,-511.21,0.00017958,2]
[373301590,1752935440052,-460.0,0.00017958,2]
[373301591,1752935440062,-460.0,0.00017958,2]
[373301592,1752935440071,-460.0,0.00017958,2]
[373301593,1752935440080,-151.0,0.00017959,2]
[373301594,1752935440089,-302.0,0.00017959,2]
[373301595,1752935440098,-460.0,0.00017959,2]
[373301596,1752935440107,-460.0,0.00017959,2]
[373301597,1752935440117,-460.0,0.00017959,2]
[373301598,1752935440127,-460.0,0.00017959,2]
[373301599,1752935440137,-460.0,0.00017959,2]
[373301600,1752935440146,-511.27,0.00017959,2]
[373301601,1752935440155,-460.0,0.00017959,2]
[373301602,1752935440167,-460.0,0.00017959,2]
[373301603,1752935440176,-644.79,0.00017959,2]
[373301604,1752935440186,-151.0,0.0001796,2]
[373301605,1752935440195,-711.0,0.0001796,2]
[373301606,1752935440204,-151.0,0.0001796,2]
[373301607,1752935440213,-460.0,0.0001796,2]
[373301609,1752935440223,-518.18,0.0001796,2]
[373301611,1752935440233,-179.82,0.0001796,2]
[373301613,1752935440242,-460.0,0.0001796,2]
[373301615,1752935440253,-460.0,0.0001796,2]
[373301617,1752935440262,-460.0,0.0001796,2]
[373301619,1752935440270,-563.45625718,0.00017961,2]
[373301620,1752935440279,-460.0,0.00017961,2]
[373301623,1752935440289,-708.0,0.00017962,2]
[373301625,1752935440299,-151.0,0.00017962,2]
[373301626,1752935440308,-212.88172764,0.00018208,2]
[373301628,1752935440318,-460.0,0.00018231,2]
[373301630,1752935440327,-675.49,0.00018231,2]
[373301633,1752935440336,-460.0,0.00018232,2]
[373301635,1752935440346,-460.0,0.00018232,2]
[373301637,1752935440356,-511.21,0.00018232,2]
[373301639,1752935440365,-460.0,0.00018232,2]
[373301641,1752935440375,-460.0,0.00018232,2]
[373301643,1752935440385,-500.0,0.00018232,2]
[373301645,1752935440396,-485.46184162,0.00018232,2]
[373301646,1752935440406,-223.09918125,0.00018232,2]
[373301649,1752935440415,-191.96148183,0.00018232,2]
[373301651,1752935440425,-173.74161195,0.00018232,2]
[373301653,1752935440434,-460.0,0.00018232,2]
[373301655,1752935440444,-500.0,0.00018232,2]
[373301657,1752935440453,-500.0,0.00018232,2]
[373301659,1752935440462,-224.11439662,0.00018232,2]
[373301661,1752935440471,-462.66444305,0.00018232,2]
[373301663,1752935440481,-500.0,0.00018232,2]
[373301665,1752935440492,-651.15957162,0.00018232,2]
[373301667,1752935440502,-500.0,0.00018232,2]
[373301669,1752935440511,-361.50304984,0.00018232,2]
[373301671,1752935440522,-288.19334537,0.00018232,2]
[373301673,1752935440531,-238.71174086,0.00018232,2]
[373301674,1752935440541,-251.1537997,0.00018233,2]
[373301676,1752935440550,-460.0,0.00018233,2]
[373301677,1752935440559,-460.0,0.00018233,2]
[373301678,1752935440569,-460.0,0.00018233,2]
[373301679,1752935440579,-460.0,0.00018233,2]
[373301681,1752935440588,-511.27,0.00018233,2]
[373301683,1752935440598,-460.0,0.00018233,2]
[373301685,1752935440607,-449.52,0.00018233,2]
[373301687,1752935440617,-644.79,0.00018233,2]
[373301689,1752935440628,-151.0,0.00018234,2]
[373301690,1752935440638,-711.0,0.00018234,2]
[373301691,1752935440648,-151.0,0.00018234,2]
[373301692,1752935440657,-281.95789548,0.00018234,2]
[373301693,1752935440667,-482.96,0.00018234,2]
[373301694,1752935440676,-460.0,0.00018234,2]
[373301695,1752935440686,-460.0,0.00018234,2]
[373301696,1752935440695,-460.0,0.00018235,2]
[373301697,1752935440705,-708.0,0.00018236,2]
[373301698,1752935440715,-151.0,0.00018236,2]
[373301699,1752935440724,-460.0,0.00018505,2]